[Event "Titled Tuesday Blitz February 15 Late 2022"]
[White "Hamley, Ryan"]
[Black "Riehle, Marco"]
[WhiteFideId "30959497"]
[BlackFideId "12904392"]
[WhiteElo "2441"]
[BlackElo "2462"]
[Result "1/2-1/2"]
[Round "09"]
[TimeControl "180+1"]
[Date "2022.02.15"]
[WhiteClock "0:00:03"]
[BlackClock "0:00:50"]

1. d4 {[%clk 0:02:57]}  d5 {[%clk 0:02:43]} 2. c4 {[%clk 0:02:56]}  e6 {[%clk 0:02:42]} 3. Nf3 {[%clk 0:02:56]}  Nf6 {[%clk 0:02:42]} 4. Nc3 {[%clk 0:02:56]}  c5 {[%clk 0:02:41]} 5. cxd5 {[%clk 0:02:55]}  Nxd5 {[%clk 0:02:41]} 6. e4 {[%clk 0:02:51]}  Nxc3 {[%clk 0:02:41]} 7. bxc3 {[%clk 0:02:51]}  cxd4 {[%clk 0:02:42]} 8. cxd4 {[%clk 0:02:52]}  Bb4+ {[%clk 0:02:42]} 9. Bd2 {[%clk 0:02:53]}  Bxd2+ {[%clk 0:02:41]} 10. Qxd2 {[%clk 0:02:53]}  O-O {[%clk 0:02:42]} 11. Bc4 {[%clk 0:02:51]}  b6 {[%clk 0:02:42]} 12. d5 {[%clk 0:02:38]}  Ba6 {[%clk 0:02:41]} 13. Bxa6 {[%clk 0:02:35]}  Nxa6 {[%clk 0:02:42]} 14. d6 {[%clk 0:02:35]}  Nc5 {[%clk 0:02:25]} 15. e5 {[%clk 0:01:57]}  f6 {[%clk 0:02:25]} 16. O-O {[%clk 0:01:56]}  fxe5 {[%clk 0:02:25]} 17. Nxe5 {[%clk 0:01:56]}  Qf6 {[%clk 0:02:26]} 18. Rae1 {[%clk 0:01:50]}  Rad8 {[%clk 0:02:25]} 19. Re3 {[%clk 0:01:40]}  h6 {[%clk 0:02:20]} 20. h3 {[%clk 0:01:32]}  Nb7 {[%clk 0:02:05]} 21. Ng4 {[%clk 0:01:04]}  Qf4 {[%clk 0:02:01]} 22. d7 {[%clk 0:00:57]}  Nc5 {[%clk 0:01:58]} 23. Ne5 {[%clk 0:00:57]}  a5 {[%clk 0:01:46]} 24. Ng6 {[%clk 0:00:23]}  Qf6 {[%clk 0:01:32]} 25. Nxf8 {[%clk 0:00:22]}  Qxf8 {[%clk 0:01:33]} 26. Qb2 {[%clk 0:00:18]}  Qd6 {[%clk 0:01:28]} 27. Rfe1 {[%clk 0:00:18]}  Rxd7 {[%clk 0:01:27]} 28. R1e2 {[%clk 0:00:15]}  Qc7 {[%clk 0:01:00]} 29. Qe5 {[%clk 0:00:14]}  Rd1+ {[%clk 0:00:55]} 30. Kh2 {[%clk 0:00:14]}  Qxe5+ {[%clk 0:00:55]} 31. Rxe5 {[%clk 0:00:14]}  Rd4 {[%clk 0:00:55]} 32. Rb2 {[%clk 0:00:14]}  Kh7 {[%clk 0:00:53]} 33. Rxb6 {[%clk 0:00:08]}  Nd7 {[%clk 0:00:53]} 34. Rbxe6 {[%clk 0:00:08]}  Nxe5 {[%clk 0:00:53]} 35. Rxe5 {[%clk 0:00:09]}  Rd2 {[%clk 0:00:53]} 36. Rxa5 {[%clk 0:00:09]}  Rxf2 {[%clk 0:00:54]} 37. Kg3 {[%clk 0:00:09]}  Rb2 {[%clk 0:00:54]} 38. Ra7 {[%clk 0:00:10]}  h5 {[%clk 0:00:53]} 39. a4 {[%clk 0:00:10]}  Rb3+ {[%clk 0:00:52]} 40. Kh2 {[%clk 0:00:10]}  Rb2 {[%clk 0:00:52]} 41. h4 {[%clk 0:00:10]}  Ra2 {[%clk 0:00:51]} 42. Kh3 {[%clk 0:00:10]}  Ra3+ {[%clk 0:00:51]} 43. g3 {[%clk 0:00:10]}  Kg6 {[%clk 0:00:50]} 44. a5 {[%clk 0:00:10]}  Ra1 {[%clk 0:00:49]} 45. Kg2 {[%clk 0:00:11]}  Ra2+ {[%clk 0:00:50]} 46. Kf3 {[%clk 0:00:11]}  Ra3+ {[%clk 0:00:51]} 47. Kf4 {[%clk 0:00:12]}  Ra4+ {[%clk 0:00:51]} 48. Kf3 {[%clk 0:00:07]}  Ra3+ {[%clk 0:00:51]} 49. Kg2 {[%clk 0:00:07]}  Ra2+ {[%clk 0:00:52]} 50. Kh3 {[%clk 0:00:08]}  Kh6 {[%clk 0:00:52]} 51. a6 {[%clk 0:00:08]}  Kg6 {[%clk 0:00:52]} 52. Ra8 {[%clk 0:00:07]}  Kh7 {[%clk 0:00:52]} 53. a7 {[%clk 0:00:04]}  g6 {[%clk 0:00:52]} 54. g4 {[%clk 0:00:02]}  Ra3+ {[%clk 0:00:52]} 55. Kg2 {[%clk 0:00:02]}  hxg4 {[%clk 0:00:53]} 56. Kf2 {[%clk 0:00:03]}  Kg7 {[%clk 0:00:53]} 57. Kg2 {[%clk 0:00:03]}  Kh7 {[%clk 0:00:51]} 58. Kf2 {[%clk 0:00:04]}  Ra5 {[%clk 0:00:49]} 59. Kg3 {[%clk 0:00:04]}  Ra4 {[%clk 0:00:50]} 60. Kg2 {[%clk 0:00:03]}  Ra3 {[%clk 0:00:50]} 1/2-1/2


[Site "https://www.chess.com"]

[Event "Titled Tuesday Blitz February 15 Late 2022"]
[White "Dronavalli, Harika"]
[Black "Carreto Nieto, Giovanni"]
[WhiteFideId "5015197"]
[BlackFideId "5105030"]
[WhiteElo "2382"]
[BlackElo "2221"]
[Result "1-0"]
[Round "09"]
[TimeControl "180+1"]
[Date "2022.02.15"]
[WhiteClock "0:01:04"]
[BlackClock "0:00:12"]

1. d4 {[%clk 0:03:00]}  Nf6 {[%clk 0:02:59]} 2. c4 {[%clk 0:03:00]}  c5 {[%clk 0:02:59]} 3. d5 {[%clk 0:02:59]}  b5 {[%clk 0:02:59]} 4. cxb5 {[%clk 0:02:55]}  a6 {[%clk 0:02:58]} 5. bxa6 {[%clk 0:02:55]}  g6 {[%clk 0:02:58]} 6. Nc3 {[%clk 0:02:55]}  Bxa6 {[%clk 0:02:58]} 7. e4 {[%clk 0:02:52]}  Bxf1 {[%clk 0:02:57]} 8. Kxf1 {[%clk 0:02:52]}  d6 {[%clk 0:02:58]} 9. Nf3 {[%clk 0:02:51]}  Bg7 {[%clk 0:02:58]} 10. g3 {[%clk 0:02:50]}  O-O {[%clk 0:02:57]} 11. Kg2 {[%clk 0:02:51]}  Nbd7 {[%clk 0:01:57]} 12. h3 {[%clk 0:02:45]}  Ra6 {[%clk 0:01:54]} 13. Re1 {[%clk 0:02:44]}  Qa8 {[%clk 0:01:53]} 14. Bd2 {[%clk 0:02:38]}  Nb6 {[%clk 0:01:40]} 15. b3 {[%clk 0:02:31]}  e6 {[%clk 0:01:27]} 16. dxe6 {[%clk 0:02:24]}  fxe6 {[%clk 0:01:28]} 17. Qe2 {[%clk 0:02:12]}  d5 {[%clk 0:01:27]} 18. exd5 {[%clk 0:02:06]}  exd5 {[%clk 0:01:28]} 19. Nb5 {[%clk 0:01:52]}  Re8 {[%clk 0:01:03]} 20. Qf1 {[%clk 0:01:44]}  Rxe1 {[%clk 0:00:53]} 21. Rxe1 {[%clk 0:01:39]}  Rxa2 {[%clk 0:00:50]} 22. Qe2 {[%clk 0:01:31]}  Ne4 {[%clk 0:00:47]} 23. Nc7 {[%clk 0:01:31]}  Qb7 {[%clk 0:00:36]} 24. Nxd5 {[%clk 0:01:30]}  Nxd2 {[%clk 0:00:30]} 25. Qe6+ {[%clk 0:01:09]}  Qf7 {[%clk 0:00:16]} 26. Qxf7+ {[%clk 0:01:08]}  Kxf7 {[%clk 0:00:16]} 27. Ng5+ {[%clk 0:01:08]}  Kg8 {[%clk 0:00:15]} 28. Nxb6 {[%clk 0:01:04]}  Nxb3 {[%clk 0:00:14]} 29. Re8+ {[%clk 0:01:04]}  Bf8 {[%clk 0:00:12]} 30. Nd7 {[%clk 0:01:04]} 1-0


[Site "https://www.chess.com"]

[Event "Titled Tuesday Blitz February 15 Late 2022"]
[White "Jarocka, Liwia"]
[Black "Kalajzic, Ivan"]
[WhiteFideId "21807558"]
[BlackFideId "14506378"]
[WhiteElo "1896"]
[BlackElo "2163"]
[Result "1-0"]
[Round "09"]
[TimeControl "180+1"]
[Date "2022.02.16"]
[WhiteClock "0:01:41"]
[BlackClock "0:00:02"]

1. e4 {[%clk 0:03:00]}  c6 {[%clk 0:02:59]} 2. d4 {[%clk 0:02:58]}  d5 {[%clk 0:02:59]} 3. Nc3 {[%clk 0:02:53]}  b5 {[%clk 0:02:58]} 4. a3 {[%clk 0:02:51]}  dxe4 {[%clk 0:02:58]} 5. Nxe4 {[%clk 0:02:51]}  Nf6 {[%clk 0:02:58]} 6. Ng3 {[%clk 0:02:48]}  e5 {[%clk 0:02:57]} 7. Nf3 {[%clk 0:02:44]}  Bg4 {[%clk 0:02:55]} 8. Be2 {[%clk 0:02:40]}  Bxf3 {[%clk 0:02:44]} 9. Bxf3 {[%clk 0:02:37]}  Qxd4 {[%clk 0:02:44]} 10. Qe2 {[%clk 0:02:36]}  Be7 {[%clk 0:02:31]} 11. O-O {[%clk 0:02:36]}  O-O {[%clk 0:02:30]} 12. Rd1 {[%clk 0:02:36]}  Qc5 {[%clk 0:02:25]} 13. Be3 {[%clk 0:02:34]}  Qc4 {[%clk 0:02:21]} 14. Qxc4 {[%clk 0:02:32]}  bxc4 {[%clk 0:02:22]} 15. Nf5 {[%clk 0:02:33]}  Re8 {[%clk 0:02:11]} 16. Nxe7+ {[%clk 0:02:30]}  Rxe7 {[%clk 0:02:11]} 17. Rd8+ {[%clk 0:02:30]}  Re8 {[%clk 0:02:11]} 18. Rad1 {[%clk 0:02:28]}  Nbd7 {[%clk 0:01:47]} 19. R8xd7 {[%clk 0:02:24]}  Nxd7 {[%clk 0:01:42]} 20. Rxd7 {[%clk 0:02:25]}  e4 {[%clk 0:01:39]} 21. Be2 {[%clk 0:02:23]}  Red8 {[%clk 0:01:35]} 22. Rxd8+ {[%clk 0:02:22]}  Rxd8 {[%clk 0:01:35]} 23. Kf1 {[%clk 0:02:22]}  Rb8 {[%clk 0:01:25]} 24. Bd4 {[%clk 0:02:19]}  c5 {[%clk 0:01:22]} 25. Bc3 {[%clk 0:02:19]}  f5 {[%clk 0:01:17]} 26. Bxc4+ {[%clk 0:02:19]}  Kf8 {[%clk 0:01:18]} 27. Ke2 {[%clk 0:02:20]}  g5 {[%clk 0:01:16]} 28. f3 {[%clk 0:02:18]}  exf3+ {[%clk 0:01:15]} 29. Kxf3 {[%clk 0:02:18]}  Ke7 {[%clk 0:01:16]} 30. g4 {[%clk 0:02:16]}  f4 {[%clk 0:01:08]} 31. b3 {[%clk 0:02:15]}  Kd6 {[%clk 0:01:06]} 32. a4 {[%clk 0:02:15]}  Re8 {[%clk 0:01:05]} 33. Bf6 {[%clk 0:02:09]}  Re3+ {[%clk 0:01:04]} 34. Kf2 {[%clk 0:02:10]}  h6 {[%clk 0:01:02]} 35. Bg7 {[%clk 0:02:09]}  Rh3 {[%clk 0:01:01]} 36. Kg2 {[%clk 0:02:08]}  Rh4 {[%clk 0:00:58]} 37. h3 {[%clk 0:02:07]}  h5 {[%clk 0:00:56]} 38. Be2 {[%clk 0:02:02]}  hxg4 {[%clk 0:00:54]} 39. Bxg4 {[%clk 0:02:03]}  Rh7 {[%clk 0:00:54]} 40. Bf6 {[%clk 0:02:01]}  c4 {[%clk 0:00:50]} 41. Bxg5 {[%clk 0:02:01]}  Ke5 {[%clk 0:00:48]} 42. bxc4 {[%clk 0:01:58]}  Rc7 {[%clk 0:00:47]} 43. Be2 {[%clk 0:01:58]}  Rd7 {[%clk 0:00:47]} 44. Bd3 {[%clk 0:01:56]}  Rb7 {[%clk 0:00:31]} 45. Kf3 {[%clk 0:01:55]}  Rb4 {[%clk 0:00:29]} 46. Bxf4+ {[%clk 0:01:53]}  Kd4 {[%clk 0:00:29]} 47. a5 {[%clk 0:01:54]}  Ra4 {[%clk 0:00:29]} 48. Bc7 {[%clk 0:01:54]}  Ra1 {[%clk 0:00:26]} 49. h4 {[%clk 0:01:53]}  Rh1 {[%clk 0:00:24]} 50. Kg3 {[%clk 0:01:51]}  a6 {[%clk 0:00:25]} 51. Kg4 {[%clk 0:01:48]}  Rg1+ {[%clk 0:00:23]} 52. Kh5 {[%clk 0:01:48]}  Rg7 {[%clk 0:00:19]} 53. Bb6+ {[%clk 0:01:49]}  Kc3 {[%clk 0:00:16]} 54. Kh6 {[%clk 0:01:50]}  Rg4 {[%clk 0:00:16]} 55. h5 {[%clk 0:01:51]}  Kb4 {[%clk 0:00:13]} 56. Kh7 {[%clk 0:01:49]}  Ka4 {[%clk 0:00:12]} 57. h6 {[%clk 0:01:49]}  Kb4 {[%clk 0:00:13]} 58. c5 {[%clk 0:01:49]}  Kc3 {[%clk 0:00:08]} 59. Kh8 {[%clk 0:01:47]}  Rg6 {[%clk 0:00:04]} 60. Bxg6 {[%clk 0:01:45]}  Kb4 {[%clk 0:00:04]} 61. Bd3 {[%clk 0:01:45]}  Ka4 {[%clk 0:00:04]} 62. h7 {[%clk 0:01:45]}  Ka3 {[%clk 0:00:03]} 63. Kg8 {[%clk 0:01:45]}  Ka4 {[%clk 0:00:04]} 64. h8=Q {[%clk 0:01:45]}  Ka3 {[%clk 0:00:05]} 65. Qc3+ {[%clk 0:01:44]}  Ka2 {[%clk 0:00:02]} 66. c6 {[%clk 0:01:41]} 1-0


[Site "https://www.chess.com"]

[Event "Titled Tuesday Blitz February 15 Late 2022"]
[White "Kavyev, Ruslan"]
[Black "Kushko, Dmitriy"]
[WhiteFideId "34110981"]
[BlackFideId "14162261"]
[WhiteElo "2182"]
[BlackElo "2225"]
[Result "1-0"]
[Round "09"]
[TimeControl "180+1"]
[Date "2022.02.15"]
[WhiteClock "0:01:24"]
[BlackClock "0:00:14"]

1. e4 {[%clk 0:03:00]}  d6 {[%clk 0:02:59]} 2. d4 {[%clk 0:03:00]}  Nf6 {[%clk 0:02:59]} 3. Nc3 {[%clk 0:03:01]}  g6 {[%clk 0:02:59]} 4. Be3 {[%clk 0:03:00]}  c6 {[%clk 0:02:59]} 5. f3 {[%clk 0:02:59]}  b5 {[%clk 0:02:55]} 6. Qd2 {[%clk 0:03:00]}  h5 {[%clk 0:02:55]} 7. a4 {[%clk 0:02:56]}  b4 {[%clk 0:02:52]} 8. Na2 {[%clk 0:02:57]}  a5 {[%clk 0:02:52]} 9. c3 {[%clk 0:02:57]}  bxc3 {[%clk 0:02:51]} 10. Nxc3 {[%clk 0:02:58]}  Bg7 {[%clk 0:02:49]} 11. Bc4 {[%clk 0:02:58]}  d5 {[%clk 0:02:33]} 12. Bd3 {[%clk 0:02:58]}  dxe4 {[%clk 0:02:31]} 13. fxe4 {[%clk 0:02:54]}  e5 {[%clk 0:02:28]} 14. dxe5 {[%clk 0:02:42]}  Ng4 {[%clk 0:02:27]} 15. Bc5 {[%clk 0:02:29]}  Nd7 {[%clk 0:02:10]} 16. Ba3 {[%clk 0:02:16]}  Ndxe5 {[%clk 0:02:08]} 17. Rd1 {[%clk 0:02:09]}  Bh6 {[%clk 0:01:25]} 18. Qe2 {[%clk 0:01:58]}  Ne3 {[%clk 0:01:02]} 19. Nf3 {[%clk 0:01:33]}  Nxf3+ {[%clk 0:00:44]} 20. Qxf3 {[%clk 0:01:34]}  Bg4 {[%clk 0:00:24]} 21. Qg3 {[%clk 0:01:34]}  Bxd1 {[%clk 0:00:20]} 22. Qe5+ {[%clk 0:01:29]}  Kd7 {[%clk 0:00:20]} 23. Qd6+ {[%clk 0:01:24]}  Ke8 {[%clk 0:00:16]} 24. Qxc6+ {[%clk 0:01:24]}  Qd7 {[%clk 0:00:13]} 25. Qxa8+ {[%clk 0:01:25]}  Qd8 {[%clk 0:00:14]} 26. Bb5# {[%clk 0:01:24]} 1-0


[Site "https://www.chess.com"]

[Event "Titled Tuesday Blitz February 15 Late 2022"]
[White "Kim, Sergey"]
[Black "Kobo, Ori"]
[WhiteFideId "13700570"]
[BlackFideId "2812320"]
[WhiteElo "2618"]
[BlackElo "2420"]
[Result "1/2-1/2"]
[Round "09"]
[TimeControl "180+1"]
[Date "2022.02.15"]
[WhiteClock "0:00:31"]
[BlackClock "0:00:10"]

1. d4 {[%clk 0:03:00]}  d6 {[%clk 0:02:57]} 2. c4 {[%clk 0:03:00]}  e5 {[%clk 0:02:57]} 3. Nf3 {[%clk 0:02:59]}  e4 {[%clk 0:02:57]} 4. Ng5 {[%clk 0:02:59]}  f5 {[%clk 0:02:57]} 5. Nc3 {[%clk 0:02:56]}  Be7 {[%clk 0:02:57]} 6. h4 {[%clk 0:02:55]}  c6 {[%clk 0:02:57]} 7. Bf4 {[%clk 0:02:52]}  Nf6 {[%clk 0:02:54]} 8. e3 {[%clk 0:02:51]}  O-O {[%clk 0:02:52]} 9. Be2 {[%clk 0:02:50]}  Na6 {[%clk 0:02:50]} 10. Qb3 {[%clk 0:02:43]}  Nc7 {[%clk 0:02:46]} 11. f3 {[%clk 0:02:34]}  h6 {[%clk 0:02:39]} 12. Nh3 {[%clk 0:02:33]}  Nh5 {[%clk 0:02:30]} 13. O-O-O {[%clk 0:02:32]}  exf3 {[%clk 0:02:12]} 14. Bxf3 {[%clk 0:02:22]}  Nf6 {[%clk 0:02:08]} 15. h5 {[%clk 0:02:11]}  Ng4 {[%clk 0:01:55]} 16. Kb1 {[%clk 0:01:55]}  Ne6 {[%clk 0:01:46]} 17. c5 {[%clk 0:01:40]}  d5 {[%clk 0:01:25]} 18. Rde1 {[%clk 0:01:26]}  Nf6 {[%clk 0:01:11]} 19. Be5 {[%clk 0:01:22]}  Ne4 {[%clk 0:01:08]} 20. Nxe4 {[%clk 0:01:08]}  fxe4 {[%clk 0:01:08]} 21. Be2 {[%clk 0:01:09]}  Ng5 {[%clk 0:00:59]} 22. Nf4 {[%clk 0:01:07]}  Bf6 {[%clk 0:00:45]} 23. Ng6 {[%clk 0:01:01]}  Rf7 {[%clk 0:00:46]} 24. Ref1 {[%clk 0:00:56]}  Be6 {[%clk 0:00:32]} 25. Qd1 {[%clk 0:00:55]}  Bxe5 {[%clk 0:00:28]} 26. Nxe5 {[%clk 0:00:54]}  Rxf1 {[%clk 0:00:25]} 27. Rxf1 {[%clk 0:00:54]}  Qc7 {[%clk 0:00:19]} 28. Bg4 {[%clk 0:00:53]}  Rf8 {[%clk 0:00:16]} 29. Bxe6+ {[%clk 0:00:47]}  Nxe6 {[%clk 0:00:17]} 30. Rxf8+ {[%clk 0:00:47]}  Nxf8 {[%clk 0:00:14]} 31. Qg4 {[%clk 0:00:45]}  Qe7 {[%clk 0:00:11]} 32. Qc8 {[%clk 0:00:38]}  Kh7 {[%clk 0:00:09]} 33. Qf5+ {[%clk 0:00:37]}  Kg8 {[%clk 0:00:10]} 34. Qc8 {[%clk 0:00:36]}  Kh7 {[%clk 0:00:10]} 35. Qf5+ {[%clk 0:00:31]}  Kg8 {[%clk 0:00:10]} 36. Qc8 {[%clk 0:00:31]} 1/2-1/2


[Site "https://www.chess.com"]

[Event "Titled Tuesday Blitz February 15 Late 2022"]
[White "Koepke, Christian"]
[Black "Antonova, Nadezhda"]
[WhiteFideId "4655737"]
[BlackFideId "14700182"]
[WhiteElo "2180"]
[BlackElo "1765"]
[Result "1-0"]
[Round "09"]
[TimeControl "180+1"]
[Date "2022.02.16"]
[WhiteClock "0:00:20"]
[BlackClock "0:00:02"]

1. Nf3 {[%clk 0:03:00]}  Nf6 {[%clk 0:02:59]} 2. d4 {[%clk 0:02:59]}  g6 {[%clk 0:02:59]} 3. Nc3 {[%clk 0:02:58]}  d5 {[%clk 0:02:58]} 4. Bf4 {[%clk 0:02:57]}  Bg7 {[%clk 0:02:58]} 5. Nb5 {[%clk 0:02:57]}  Na6 {[%clk 0:02:57]} 6. e3 {[%clk 0:02:57]}  c6 {[%clk 0:02:57]} 7. Nc3 {[%clk 0:02:57]}  Nb8 {[%clk 0:02:56]} 8. h3 {[%clk 0:02:55]}  O-O {[%clk 0:02:55]} 9. Bd3 {[%clk 0:02:53]}  Re8 {[%clk 0:02:55]} 10. O-O {[%clk 0:02:53]}  Nfd7 {[%clk 0:02:55]} 11. Ne5 {[%clk 0:02:31]}  Nxe5 {[%clk 0:02:49]} 12. Bxe5 {[%clk 0:02:31]}  f6 {[%clk 0:02:48]} 13. Bg3 {[%clk 0:02:26]}  e5 {[%clk 0:02:48]} 14. a4 {[%clk 0:02:06]}  Be6 {[%clk 0:02:39]} 15. a5 {[%clk 0:02:03]}  Bf7 {[%clk 0:02:35]} 16. b4 {[%clk 0:01:41]}  a6 {[%clk 0:02:18]} 17. Na4 {[%clk 0:01:38]}  Nd7 {[%clk 0:02:16]} 18. c3 {[%clk 0:01:37]}  f5 {[%clk 0:02:00]} 19. Nc5 {[%clk 0:01:20]}  Qc8 {[%clk 0:01:05]} 20. Nxd7 {[%clk 0:01:18]}  Qxd7 {[%clk 0:01:05]} 21. dxe5 {[%clk 0:01:18]}  Bxe5 {[%clk 0:01:05]} 22. Bxe5 {[%clk 0:01:19]}  Rxe5 {[%clk 0:01:05]} 23. Qf3 {[%clk 0:01:15]}  Rc8 {[%clk 0:00:41]} 24. Qf4 {[%clk 0:01:10]}  Qe7 {[%clk 0:00:37]} 25. Rab1 {[%clk 0:01:04]}  Re8 {[%clk 0:00:27]} 26. h4 {[%clk 0:01:00]}  Qf6 {[%clk 0:00:19]} 27. g3 {[%clk 0:01:00]}  R5e7 {[%clk 0:00:19]} 28. Qd4 {[%clk 0:01:00]}  Qxd4 {[%clk 0:00:14]} 29. cxd4 {[%clk 0:00:58]}  Kg7 {[%clk 0:00:14]} 30. Kg2 {[%clk 0:00:57]}  Kf6 {[%clk 0:00:14]} 31. Kf3 {[%clk 0:00:58]}  h6 {[%clk 0:00:15]} 32. Rh1 {[%clk 0:00:56]}  Be6 {[%clk 0:00:09]} 33. Ke2 {[%clk 0:00:55]}  Bc8 {[%clk 0:00:07]} 34. Kd2 {[%clk 0:00:55]}  Bd7 {[%clk 0:00:07]} 35. Kc3 {[%clk 0:00:55]}  g5 {[%clk 0:00:05]} 36. hxg5+ {[%clk 0:00:55]}  hxg5 {[%clk 0:00:05]} 37. Rh6+ {[%clk 0:00:55]}  Kg7 {[%clk 0:00:03]} 38. Rbh1 {[%clk 0:00:51]}  Rg8 {[%clk 0:00:02]} 39. g4 {[%clk 0:00:39]}  Kf8 {[%clk 0:00:02]} 40. gxf5 {[%clk 0:00:36]}  Rf7 {[%clk 0:00:02]} 41. f6 {[%clk 0:00:33]}  Ke8 {[%clk 0:00:01]} 42. Kd2 {[%clk 0:00:31]}  Be6 {[%clk 0:00:01]} 43. Ke2 {[%clk 0:00:31]}  Rgf8 {[%clk 0:00:01]} 44. Rg1 {[%clk 0:00:27]}  g4 {[%clk 0:00:02]} 45. Bg6 {[%clk 0:00:26]}  Kd7 {[%clk 0:00:02]} 46. Bxf7 {[%clk 0:00:26]}  Rxf7 {[%clk 0:00:03]} 47. Rg6 {[%clk 0:00:22]}  Bf5 {[%clk 0:00:02]} 48. Rg7 {[%clk 0:00:22]}  Ke6 {[%clk 0:00:02]} 49. Rxf7 {[%clk 0:00:21]}  Kxf7 {[%clk 0:00:02]} 50. Rh1 {[%clk 0:00:22]}  Kxf6 {[%clk 0:00:02]} 51. Rh8 {[%clk 0:00:20]} 1-0


[Site "https://www.chess.com"]

[Event "Titled Tuesday Blitz February 15 Late 2022"]
[White "Kopczynski, Michal"]
[Black "Remizov, Yaroslav"]
[WhiteFideId "1124200"]
[BlackFideId "34134015"]
[WhiteElo "2489"]
[BlackElo "2671"]
[Result "0-1"]
[Round "09"]
[TimeControl "180+1"]
[Date "2022.02.16"]
[WhiteClock "0:00:22"]
[BlackClock "0:00:51"]

1. e4 {[%clk 0:03:00]}  e6 {[%clk 0:03:00]} 2. d4 {[%clk 0:03:01]}  a6 {[%clk 0:03:00]} 3. Nc3 {[%clk 0:03:01]}  c5 {[%clk 0:03:01]} 4. dxc5 {[%clk 0:03:00]}  Bxc5 {[%clk 0:03:00]} 5. Bd3 {[%clk 0:03:00]}  Nf6 {[%clk 0:02:57]} 6. Qe2 {[%clk 0:03:00]}  Nc6 {[%clk 0:02:55]} 7. Be3 {[%clk 0:02:55]}  Bxe3 {[%clk 0:02:52]} 8. Qxe3 {[%clk 0:02:55]}  d6 {[%clk 0:02:52]} 9. O-O-O {[%clk 0:02:54]}  O-O {[%clk 0:02:49]} 10. f3 {[%clk 0:02:55]}  b5 {[%clk 0:02:46]} 11. g4 {[%clk 0:02:54]}  Bb7 {[%clk 0:02:44]} 12. g5 {[%clk 0:02:54]}  Nd7 {[%clk 0:02:42]} 13. f4 {[%clk 0:02:48]}  Rc8 {[%clk 0:02:42]} 14. Nf3 {[%clk 0:02:47]}  Nb4 {[%clk 0:02:24]} 15. a3 {[%clk 0:02:40]}  Nxd3+ {[%clk 0:02:14]} 16. Qxd3 {[%clk 0:02:40]}  Nc5 {[%clk 0:02:12]} 17. Qd4 {[%clk 0:02:25]}  Qc7 {[%clk 0:01:44]} 18. Rd2 {[%clk 0:02:12]}  Bxe4 {[%clk 0:01:34]} 19. Rf1 {[%clk 0:01:56]}  d5 {[%clk 0:01:29]} 20. Ne5 {[%clk 0:01:46]}  a5 {[%clk 0:01:27]} 21. Kb1 {[%clk 0:01:30]}  Nb3 {[%clk 0:01:26]} 22. Qe3 {[%clk 0:01:22]}  Nxd2+ {[%clk 0:01:26]} 23. Qxd2 {[%clk 0:01:22]}  Bxc2+ {[%clk 0:01:16]} 24. Ka1 {[%clk 0:01:05]}  b4 {[%clk 0:01:15]} 25. Ne2 {[%clk 0:01:03]}  bxa3 {[%clk 0:01:14]} 26. bxa3 {[%clk 0:01:04]}  Qc5 {[%clk 0:01:13]} 27. Rf3 {[%clk 0:01:01]}  Qb5 {[%clk 0:01:08]} 28. Rf1 {[%clk 0:00:46]}  Qa4 {[%clk 0:01:01]} 29. Rf3 {[%clk 0:00:42]}  Bb3 {[%clk 0:00:58]} 30. Rxb3 {[%clk 0:00:26]}  Qxb3 {[%clk 0:00:58]} 31. Qb2 {[%clk 0:00:27]}  Qa4 {[%clk 0:00:54]} 32. Nd4 {[%clk 0:00:26]}  Rb8 {[%clk 0:00:51]} 33. Qc3 {[%clk 0:00:24]}  Qd1+ {[%clk 0:00:51]} 34. Ka2 {[%clk 0:00:22]}  Qb1# {[%clk 0:00:51]} 0-1


[Site "https://www.chess.com"]

[Event "Titled Tuesday Blitz February 15 Late 2022"]
[White "Kosteniuk, Alexandra"]
[Black "Gracia Alvarez, Gerardo Antonio"]
[WhiteFideId "4128125"]
[BlackFideId "5109124"]
[WhiteElo "2469"]
[BlackElo "2139"]
[Result "1-0"]
[Round "09"]
[TimeControl "180+1"]
[Date "2022.02.15"]
[WhiteClock "0:00:49"]
[BlackClock "0:00:07"]

1. d4 {[%clk 0:03:00]}  Nf6 {[%clk 0:02:59]} 2. Nf3 {[%clk 0:03:01]}  g6 {[%clk 0:02:59]} 3. h4 {[%clk 0:02:59]}  Bg7 {[%clk 0:02:48]} 4. c4 {[%clk 0:02:58]}  c5 {[%clk 0:02:45]} 5. d5 {[%clk 0:02:57]}  d6 {[%clk 0:02:43]} 6. Nc3 {[%clk 0:02:52]}  e6 {[%clk 0:02:43]} 7. h5 {[%clk 0:02:48]}  Nxh5 {[%clk 0:02:38]} 8. g4 {[%clk 0:02:46]}  Nf6 {[%clk 0:02:36]} 9. g5 {[%clk 0:02:45]}  Nh5 {[%clk 0:02:29]} 10. e4 {[%clk 0:02:27]}  exd5 {[%clk 0:02:29]} 11. Nxd5 {[%clk 0:02:23]}  Nc6 {[%clk 0:02:25]} 12. Be2 {[%clk 0:02:21]}  Bg4 {[%clk 0:02:21]} 13. Rh4 {[%clk 0:02:16]}  Qd7 {[%clk 0:02:04]} 14. Rb1 {[%clk 0:01:40]}  O-O-O {[%clk 0:02:02]} 15. Be3 {[%clk 0:01:37]}  Rde8 {[%clk 0:01:57]} 16. Qc2 {[%clk 0:01:37]}  h6 {[%clk 0:01:31]} 17. b4 {[%clk 0:01:35]}  hxg5 {[%clk 0:01:29]} 18. Bxg5 {[%clk 0:01:25]}  Bxf3 {[%clk 0:01:19]} 19. Bxf3 {[%clk 0:01:26]}  Nd4 {[%clk 0:01:20]} 20. Qd3 {[%clk 0:01:24]}  f5 {[%clk 0:00:59]} 21. Bg2 {[%clk 0:01:16]}  fxe4 {[%clk 0:00:39]} 22. Rxe4 {[%clk 0:01:04]}  Rxe4+ {[%clk 0:00:37]} 23. Qxe4 {[%clk 0:01:04]}  cxb4 {[%clk 0:00:18]} 24. Ne7+ {[%clk 0:00:59]}  Kb8 {[%clk 0:00:18]} 25. Rxb4 {[%clk 0:00:59]}  d5 {[%clk 0:00:11]} 26. cxd5 {[%clk 0:00:52]}  Re8 {[%clk 0:00:07]} 27. d6 {[%clk 0:00:49]} 1-0


[Site "https://www.chess.com"]